Cogmind - Beta 14 @@@ ROGUE MODE // 2024.10.04 @ 18:51:46 Player: Riksa Result: Destroyed by as-71221 with Assembled Heavy Rifle Performance ------------- Evolutions (0) 0 Regions Visited (3) 600 Robots Destroyed (7) 35 Value Destroyed (203) 203 Prototype IDs (25) 500 Alien Tech Used (0) 0 Bonus (300) 300 TOTAL SCORE: 1638 Bonus ------- Aligned with FarCom 300 Cogmind --------- Core Integrity 0/250 Matter 77/300 Energy 43/100 System Corruption 3% Temperature Warm (136) Movement Walking (470) Ox5 Location -10/Exiles Parts ------- > --- POWER (1) -------- (None) > --- PROPULSION (2) --- Light Treads Aluminum Leg > --- UTILITY (2) ------ High-capacity Storage Unit Sensor Array > --- WEAPON (2) ------- Guided Plasma Cannon Datajack > --- INVENTORY (20) --- Reinforced Deuterium Engine Fission Core Medium Storage Unit Particle Gun Light Assault Rifle Light Cannon Explosive Trap Explosive Trap Explosive Trap Peak State ------------ > --- POWER ------------ Light Ion Engine > --- PROPULSION ------- Light Treads Light Treads > --- UTILITY ---------- High-capacity Storage Unit Sensor Array > --- WEAPON ----------- Guided Plasma Cannon Grenade Launcher > --- INVENTORY -------- Reinforced Deuterium Engine Fission Core Aluminum Leg Medium Storage Unit Particle Gun Light Assault Rifle Light Cannon Datajack Explosive Trap Explosive Trap Explosive Trap [Rating: 15] Favorites ----------- Power Light Ion Engine Engine Light Ion Engine Propulsion Light Treads Treads Light Treads Leg Aluminum Leg Utility Sensor Array Device Sensor Array Storage High-capacity Storage Unit Weapon Light Cannon Energy Cannon Guided Plasma Cannon Ballistic Gun Assault Rifle Ballistic Cannon Light Cannon Launcher Grenade Launcher Special Melee Weapon Datajack Build | -11 -10 -10 -10 ------- Run | Yrd Mat Min Exi Slots Evolved . | . . . . Power . | . . . . Propulsion . | . . . . Utility . | . . . . Weapon . | . . . . Parts Attached 25 | 7 11 . 7 Power 2 | 2 . . . Engine 2 | 2 . . . Core . | . . . . Reactor . | . . . . Propulsion 4 | 2 1 . 1 Treads 3 | 2 1 . . Leg 1 | . . . 1 Wheel . | . . . . Hover . | . . . . Flight . | . . . . Utility 6 | 1 3 . 2 Device 1 | . 1 . . Storage 5 | 1 2 . 2 Processor . | . . . . Hackware . | . . . . Protection . | . . . . Artifact . | . . . . Weapon 13 | 2 7 . 4 Energy Gun . | . . . . Energy Cannon 1 | . . . 1 Ballistic Gun 3 | 2 1 . . Ballistic Cannon 3 | . 3 . . Launcher 3 | . 2 . 1 Special Weapon . | . . . . Impact Weapon . | . . . . Slashing Weapon . | . . . . Piercing Weapon . | . . . . Special Melee Weapon 3 | . 1 . 2 Unidentified Prototypes . | . . . . Parts Lost 3 | . 1 . 2 Power 1 | . . . 1 Propulsion . | . . . . Utility . | . . . . Weapon 2 | . 1 . 1 Highest Loss Streak 2 | . 1 . 2 To Critical Strikes . | . . . . Average Slot Usage (%) 99 | . 97 100 99 Engine 13 | . 14 14 13 Treads 27 | . 28 28 27 Device 12 | . 7 14 14 Storage 15 | . 18 14 14 Ballistic Gun 3 | . 15 . . Ballistic Cannon 11 | . 8 14 12 Launcher 11 | . 4 14 13 Peak Build Rating 15 | 6 8 8 15 Average Rating 7 | 5 6 7 8 On Entrance 5 | . 6 7 8 Naked Turns . | . . . . Heaviest Build 57 | 12 20 20 57 Greatest Support 40 | 40 40 40 40 Greatest Overweight (x) 5 | . . . 5 Average Overweight (x) . | . . . . Largest Inventory Capacity 20 | 8 10 10 20 Average Capacity 13 | 7 8 10 18 Most Carried 11 | 5 8 10 11 Average Carried 8 | 3 6 8 10 Final Capacity 20 | 8 10 10 20 Final Carried 10 | 4 7 10 9 Class Distribution -------------------- 100% | Mutant Dominant Class ---------------- Mutant | -10/Materials Mutant | -10/Mines Mutant | -10/Exiles Resources | -11 -10 -10 -10 ----------- Run | Yrd Mat Min Exi Matter Collected 430 | 241 149 40 . Remotely . | . . . . Salvage Created 187 | . 156 . 31 Parts 9 | . 9 . . Haulers Intercepted 1 | . 1 . . Recyclers Shooed . | . . . . Parts Field Recycled . | . . . . Retrieved Matter . | . . . . Parts Self-Destructed . | . . . . Prevented . | . . . . Kills | -11 -10 -10 -10 ------- Run | Yrd Mat Min Exi Combat Hostiles Destroyed 9 | . 5 . 4 Cannons 4 | . 1 . 3 AOE 5 | . 4 . 1 Classes Destroyed 4 | . 3 . 1 Builder 1 | . 1 . . Hauler 1 | . 1 . . Grunt 5 | . 5 . . Assembled 4 | . . . 4 Best Kill Streak 4 | . 4 . 4 Combat Bots Only 4 | . 4 . 4 Max Kills in Single Turn 2 | . 2 . 1 Gunslinging . | . . . . Exploded 2 | . 2 . 1 Melee . | . . . . Uniques/NPCs Destroyed . | . . . . Combat | -11 -10 -10 -10 -------- Run | Yrd Mat Min Exi Hostile Shots Fired 74 | . 28 . 46 Missed 23 | . 11 . 12 Damage Taken 877 | . 263 . 614 Core 251 | . 16 . 235 Absorbed by Shields . | . . . . Core Remaining (%) 100 | 100 . . . Volleys Fired 16 | . 11 . 5 Largest 2 | . 2 . 1 Hottest 120 | . 60 . 120 Shots Fired 25 | . 19 . 6 Gun 4 | . 4 . . Cannon 10 | . 6 . 4 Launcher 11 | . 9 . 2 Special . | . . . . Kinetic 10 | . 10 . . Thermal 4 | . . . 4 Explosive 11 | . 9 . 2 Electromagnetic . | . . . . Robot Hit Streak 7 | . 4 . 7 Robot Miss Streak 1 | . 1 . . Penetration Max . | . . . . Secondary Targets . | . . . . Shots Hit Robots 23 | . 15 . 8 Core Hits 18 | . 12 . 6 Critical Kills . | . . . . Critical Parts Destroyed . | . . . . Critical Strikes 1 | . 1 . . Blast 1 | . 1 . . Melee Attacks 4 | . 2 . 2 Impact . | . . . . Slashing . | . . . . Piercing . | . . . . Sneak Attacks 3 | . 2 . 1 Combat Hostiles . | . . . . Follow-up Attacks . | . . . . Damage Inflicted 873 | . 610 . 263 Guns 25 | . 25 . . Cannons 222 | . 81 . 141 Explosions 626 | . 504 . 122 Melee . | . . . . Ramming . | . . . . Kinetic 106 | . 106 . . Thermal 141 | . . . 141 Explosive 626 | . 504 . 122 Electromagnetic . | . . . . Impact . | . . . . Slashing . | . . . . Piercing . | . . . . Highest Corruption 3 | . 3 3 3 Average Corruption 2 | . 2 3 3 Corruption Purged . | . . . . Corruption Blocked . | . . . . Effects 37 | . 3 11 23 Message Errors 6 | . . 1 5 Matter Fused 10 | . 2 2 6 Heat Flow Errors 5 | . . 2 3 Energy Discharges 5 | . 1 2 2 Data Loss (minor) 9 | . . 4 5 Data Loss (major) 1 | . . . 1 Misfires 1 | . . . 1 Overload Shots . | . . . . Overflow Damage 21 | . 21 . . Projectiles 6 | . 6 . . Explosions 15 | . 15 . . Melee . | . . . . Knockbacks . | . . . . Impact . | . . . . Kinetic . | . . . . Secondary . | . . . . Self-Inflicted Damage 64 | . 34 . 30 Shots 3 | . 2 . 1 Rammed . | . . . . Targets Rammed . | . . . . Kicked . | . . . . Crushed . | . . . . Highest Temperature 227 | . 45 227 224 Average Temperature 81 | . 19 101 100 Received Heat Transfer 132 | . 132 . . Siege Activations . | . . . . Robots Corrupted . | . . . . Combat Hostiles . | . . . . Parts Fried . | . . . . Impact Corruptions . | . . . . Robots Melted . | . . . . Combat Hostiles . | . . . . Parts Melted . | . . . . Heat Transferred 320 | . . . 320 Parts Sabotaged . | . . . . Parts Stolen . | . . . . Parts Stripped . | . . . . Power Chain Reactions . | . . . . Alert | -11 -10 -10 -10 ------- Run | Yrd Mat Min Exi Peak Influence 128 | . 128 49 . Initial 49 | . . 49 . Average 33 | . 42 33 . Maximum Alert Level . | . . . . Low Security (%) 100 | 100 100 100 . Level 1 . | . . . . Level 2 . | . . . . Level 3 . | . . . . Level 4 . | . . . . Level 5 . | . . . . High Security . | . . . . Max Security . | . . . . Squads Dispatched 1 | . 1 . . Investigation . | . . . . Extermination . | . . . . Reinforcement 1 | . 1 . . Assault . | . . . . Garrison . | . . . . Intercept . | . . . . Searches Triggered . | . . . . Construction Impeded . | . . . . Haulers Reinforced . | . . . . Active Scanning Responses . | . . . . Cargo Convoy Interrupts . | . . . . Stealth | -11 -10 -10 -10 --------- Run | Yrd Mat Min Exi Distress Signals . | . . . . Communications Jammed . | . . . . Distress Signals . | . . . . Times Spotted 16 | . 8 . 8 Peak Tracking Total 11 | . 4 . 11 Tactical Retreats 1 | . . . 1 Traps | -11 -10 -10 -10 ------- Run | Yrd Mat Min Exi Traps Triggered 2 | . 2 . . Indirectly . | . . . . Trap Hack Attempts . | . . . . Triggered . | . . . . Disarmed . | . . . . Reprogrammed . | . . . . Reused . | . . . . Traps Extracted . | . . . . Installed 1 | . . 1 . Triggered . | . . . . Most Traps Carried 3 | . . 3 3 Machines | -11 -10 -10 -10 ---------- Run | Yrd Mat Min Exi Machines Disabled 1 | . . . 1 Max in Single Turn 1 | . . . 1 Machines Repaired . | . . . . Machines Dismantled . | . . . . Machines Sabotaged . | . . . . Overloaded Fab Kills . | . . . . Hacking | -11 -10 -10 -10 --------- Run | Yrd Mat Min Exi Machines Accessed 7 | . 2 . 5 Terminals 2 | . 2 . . Fabricators . | . . . . Repair Stations . | . . . . Recycling Units . | . . . . Scanalyzers . | . . . . Garrison Access . | . . . . Total Hacks 57 | . 7 . 50 Successful 54 | . 4 . 50 Failed 3 | . 3 . . Catastrophic . | . . . . Database Lockouts . | . . . . Manual 4 | . . . 4 Terminals 7 | . 7 . . Fabricators . | . . . . Repair Stations . | . . . . Recycling Units . | . . . . Scanalyzers . | . . . . Garrison Access . | . . . . Terminal Hacks 54 | . 4 . 50 Record 51 | . 2 . 49 Hauler Manifests 1 | . 1 . . Zone Layout 1 | . 1 . . Derelict Proto ID Bank 1 | . . . 1 Fabricator Hacks . | . . . . Repair Station Hacks . | . . . . Recycling Unit Hacks . | . . . . Scanalyzer . | . . . . Garrison Access Hacks . | . . . . Unauthorized Hacks . | . . . . Terminals . | . . . . Fabricators . | . . . . Repair Stations . | . . . . Recycling Units . | . . . . Scanalyzers . | . . . . Garrison Access . | . . . . Data Cores Recovered . | . . . . Used . | . . . . Hacking Detections 1 | . 1 . . Full Trace Events . | . . . . Feedback Events . | . . . . Feedback Blocked . | . . . . Robot Schematics Acquired . | . . . . Robots Built . | . . . . Authchips . | . . . . Time . | . . . . Total Robot Build Rating . | . . . . Part Schematics Acquired . | . . . . Parts Built . | . . . . Authchips . | . . . . Time . | . . . . Total Part Build Rating . | . . . . Parts Repaired . | . . . . Time . | . . . . Parts Recycled . | . . . . Recycled Matter . | . . . . Retrieved Matter . | . . . . Retrieved Components . | . . . . Parts Scanalyzed . | . . . . Part Schematics Acquired . | . . . . Parts Damaged . | . . . . Bothacking | -11 -10 -10 -10 ------------ Run | Yrd Mat Min Exi Used RIF Installer . | . . . . Robots Hacked 3 | . 1 . 2 Non-combat 2 | . 1 . 1 Combat 1 | . . . 1 Robot Hacks Applied 3 | . 1 . 2 parse_system 3 | . 1 . 2 Relay Couplers Released . | . . . . Fabnet Peak Effective % . | . . . . Robots Rewired . | . . . . Allies Hacked . | . . . . Hacks Repelled . | . . . . Allies | -11 -10 -10 -10 -------- Run | Yrd Mat Min Exi Total Allies . | . . . . Largest Group . | . . . . Highest-Rated Group . | . . . . Highest-Rated Ally . | . . . . Total Orders . | . . . . Ally Attacks . | . . . . Total Damage . | . . . . Kills . | . . . . Allies Corrupted . | . . . . Allies Melted . | . . . . Intel | -11 -10 -10 -10 ------- Run | Yrd Mat Min Exi Robot Analysis Total . | . . . . Derelict Logs Recovered 1 | . . 1 . Drone Launches . | . . . . Drone Recoveries . | . . . . Exploration | -11 -10 -10 -10 ------------- Run | Yrd Mat Min Exi Turns Passed 2316 | 123 539 588 1066 Spaces Moved 1201 | 74 298 366 463 Core 11 | 11 . . . Treads 1189 | 63 298 366 462 Legs 1 | . . . 1 Wheels . | . . . . Hover . | . . . . Flight . | . . . . Fastest Speed 50 | 50 160 160 160 Average Speed 183 | 143 160 160 222 Slowest Speed 470 | 160 160 160 470 Overloaded Moves . | . . . . Propulsion Burnouts . | . . . . Robots Hopped . | . . . . Cave-ins Triggered . | . . . . Exploration Rate (%) 48 | 5 46 59 83 Regions Visited 3 Branch Regions 2 Pre-discovered Areas 1 | . . . 1 Known Exits Taken . | . . . . Unknown Exits Taken 3 | 1 1 1 . Scrap Searched 1 | . . 1 . Spaces Dug . | . . . . Terrain Destroyed 48 | . 43 . 5 Melee . | . . . . Projectile . | . . . . AOE 48 | . 43 . 5 Terrain Rammed . | . . . . Walls Destroyed . | . . . . Machines Disabled . | . . . . Actions | -11 -10 -10 -10 --------- Run | Yrd Mat Min Exi Total 1296 | 90 340 369 497 Wait . | . . . . Move 1198 | 73 297 365 463 Hop . | . . . . Pick Up 35 | 10 12 3 10 Fast Attach . | . . . . Attach 10 | 6 2 . 2 Detach . | . . . . Swap 15 | 1 9 . 5 Drop 14 | . 7 . 7 Fire 16 | . 11 . 5 Melee 4 | . 2 . 2 Ram . | . . . . Kick . | . . . . Crush . | . . . . Escape Stasis . | . . . . Rewire 3 | . . . 3 Trap 1 | . . 1 . Miscellaneous . | . . . . Route ------- -11/Scrapyard -10/Materials (discovered 2 exits: [*Mat] / [*Min]) -10/Mines -10/Exiles History --------- Turn | Location | Event 11 | -11/Scrapyard | Discovered new exit (range 16) 124 | -11/Scrapyard | Entered Materials 312 | -10/Materials | Build established: Mutant 445 | -10/Materials | Discovered new exit (range 4) 648 | -10/Materials | Discovered new exit (range 9) 663 | -10/Materials | Entered Mines 791 | -10/Mines | Learned Materials stockpile data 929 | -10/Mines | Found a hidden stash of uninstalled traps 1079 | -10/Mines | Deemed a non-threat by the Exiles lab entrance 1080 | -10/Mines | Discovered new exit (range 5) 1251 | -10/Mines | Entered Exiles 1301 | -10/Exiles | Met 8R-AWN 1338 | -10/Exiles | Met EX-HEX 1495 | -10/Exiles | Met EX-DEC 1592 | -10/Exiles | Visited The Gauntlet 1939 | -10/Exiles | Learned location of Zion (-7) 2030 | -10/Exiles | Met EX-BIN 2076 | -10/Exiles | Aligned with FarCom system 2078 | -10/Exiles | Given EX-Vault access code 2162 | -10/Exiles | Opened EX-Vault 2174 | -10/Exiles | Found Gui. Plasma Cannon 2256 | -10/Exiles | Warned to stay clear of 0b10 Research branches 2289 | -10/Exiles | Attacked by the Exiles 2309 | -10/Exiles | Core integrity fell below 50% 2316 | -10/Exiles | Core integrity fell below 20% 2317 | -10/Exiles | Destroyed by as-71221 with Assembled Heavy Rifle Last Messages --------------- EX-BIN: "I just want to science!" as-41089 destroyed. as-77559 destroyed. Grenade Launcher destroyed. Lgt. Treads severed. Jacked as-68890... >>parse_system Reading system data... Lgt. Ion Engine destroyed. Sneak attack on EX-BIN. Jacked EX-BIN... >>parse_system Reading system data... New IDs: Cold Fusion Reactor System Purifier Knocked back. as-68890 destroyed. as-51329 destroyed. Penetrated by HV Slug. Map ----- +----------------------------------------------------+ | ????????????????#""X" #??????????????????? | | ????????????????#" #??????????????????? | | ????????????????#" ## #??????????????????? | | ????????????????#""""""## #?#########????????? | | ????????????????##"###### #?#"""""""#????????? | | ???????????????? "?????# #?#"""""""#????????? | | ???????????????""" ?????# #?#"""""""#????????? | | ???????????????""" ????## ###"" """"#????????? | | ?????????????????" ????#" """"#????????? | | ?????????????????##????#" """#????????? | | ???????????????????????#" """#????????? | | ???????????????????????#" """#????????? | | ????????########???????#" """#????????? | | ????????# """#???????#" """##???????? | | ????????#"" """#???????## """""???????? | | ????????#"" #????????# """##???????? | | ????????#"" #????????#" "X" """""???????? | | ????????#"" "#????????#" """ # ???????? | | ????????# ""#????????#" """""""""#????????? | | ????????#"" ""#?????####" ###########????????? | | ????????### ###?????# #??????????????????? | | ####????### ###?##### #??????????????????? | | """#####X# #"###"""" ##?????????????????? | | """""" ####?###########??? | | "" """ % ###"""""""""##?? | | " " @% " """ """"##? | | % "" " #? | | " """#? | | # " "#? | | ## " "## | | ?##" c ""# | | ??#""" """""" % "" | | ?##" ######""" a a | | ?#"" ""##????#####""" a | | ##""" """##??????????#""" | | #""" """##???????????#"""" | | #""" ""#???????????##"" | | #"" ########??####"""" | | #""" ## ####""" | | #"" """" | | ##"" | | ?#"""" | | ?## " | | ??#" " "" """ | | ??#"""" ""## ##""" " " ""#" | | ??#"" ""#### ######""" """##""""""" | | ??#" """"##??# #????###""""########## | | ??#""" """#??## ####????#####????????? | | ??## ""##??#! "!#?????????????????? | | ???#"" """##???#" #?????????????????? | +----------------------------------------------------+ Best States ------------- Heat Dissipation 25 Energy Generation 10 Energy Capacity 250 Matter Stores 271 Matter Capacity 500 Sight Range 16 Robot Scan Range 14 Terrain Scan Density 10 Evasion (%) 40 Recoil Reduction 2 Item Schematics ----------------- None Robot Schematics ------------------ None Fabricated ------------ Nothing Alien Tech Used ----------------- None Achievements -------------- None Challenges ------------ None Game ------ Seed RecyclingTeslaMace Manual? 0 Play Time 00:36:26 Cumulative 2.8 hours Start 2024.10.04 @ 18:13:29 End 2024.10.04 @ 18:51:46 Sessions 1 Manual Loads 0 Difficulty Rogue Special Mode None Game No. 5 Rogue 5 Adventurer 0 Explorer 0 Win Type - Total 0 Types 0/0/0/0/0/0/0/0/0 Lore% 6 Gallery% 5 Achievement% 6 Wizard Run 0 Options --------- Layout 1 ASCII 0 Keyboard 0 Movement Numpad Keybinds 0 Fullscreen 1 Font 24/Smallcaps Map View 50x35 Zoom Use 0% Tactical HUD 0 Map Filters NONE Filters NONE Steam 1 RUN: 48515478-8a70-4ad9-bbae-e7ba4c1a73dd